bitfinex/quotes_ETHUSD_20250923
["timestamp","ask_amount","ask_price","bid_price","bid_amount"]
[1758633746829,0.7051,4200.6,4200.5,2.49906896]
[1758633746980,0.7051,4200.6,4200.5,6.47606896]
[1758633747180,0.7051,4200.6,4200.5,2.49906896]
[1758633747418,0.7051,4200.6,4200.5,6.47606896]
[1758633747619,0.7051,4200.6,4200.5,2.49906896]
[1758633749482,0.8387141,4200.6,4200.5,2.49906896]
[1758633751860,0.7051,4200.6,4200.5,2.49906896]
[1758633752044,0.83880633,4200.6,4200.5,2.49906896]
[1758633754166,0.13470633,4200.6,4200.5,2.52287564]
[1758633754374,0.13470633,4200.6,4200.5,17.74547564]
[1758633754570,0.001,4201.0,4200.9,2.38044228]
[1758633754881,0.001,4201.0,4200.9,6.47584228]
[1758633755084,0.001,4201.0,4200.9,2.49884228]
[1758633755253,0.001,4201.0,4200.9,6.47584228]
[1758633756744,0.001,4201.0,4200.9,2.49884228]
[1758633756944,12.14702028,4201.0,4200.9,2.49884228]
[1758633759093,12.37003301,4201.0,4200.9,2.49884228]
[1758633760196,12.37016041,4201.0,4200.9,2.49884228]
[1758633762489,16.34716041,4201.0,4200.9,2.49884228]
[1758633765376,16.34636041,4201.0,4200.9,2.49884228]
[1758633766192,15.87466041,4201.0,4200.9,2.49884228]
[1758633766667,15.77616256,4201.0,4200.9,2.49884228]
[1758633767185,15.77616256,4201.0,4200.9,16.99884228]
[1758633768195,15.77616106,4201.0,4200.9,16.99884228]
[1758633768573,4.33424078,4201.0,4200.9,16.99884228]
[1758633770910,0.13410065,4201.0,4200.9,16.99884228]
[1758633771094,0.13410065,4201.0,4200.9,17.68564228]
[1758633774184,0.0002,4201.0,4200.9,17.68564228]
[1758633774385,0.0002,4201.0,4200.9,16.99884228]
[1758633774579,0.13405367,4201.0,4200.9,16.99884228]
[1758633774779,0.13405367,4201.0,4200.9,20.97584228]
[1758633775698,0.83855367,4201.0,4200.9,16.99884228]
[1758633776009,1.06165597,4201.0,4200.9,2.49884228]
[1758633778379,0.13405367,4201.0,4200.9,2.49884228]
[1758633778914,0.13405754,4201.0,4200.9,3.18564228]
[1758633779316,0.13405754,4201.0,4200.9,2.95774228]
[1758633779821,0.13405754,4201.0,4200.9,2.49884228]
[1758633780023,0.13405754,4201.0,4200.9,16.99884228]
[1758633780250,0.13405754,4201.0,4200.9,20.97584228]
[1758633781521,0.13405754,4201.0,4200.9,21.20374228]
[1758633781724,0.13405754,4201.0,4200.9,21.66264228]
[1758633782122,0.13405754,4201.0,4200.9,21.43474228]
[1758633783238,0.13405754,4201.0,4200.9,20.97584228]
[1758633783727,0.13405754,4201.0,4200.9,16.99884228]
[1758633784544,0.13405754,4201.0,4200.9,17.68564228]
[1758633784746,0.001,4201.1,4201.0,2.38038562]
[1758633784909,0.001,4201.1,4201.0,7.04418562]
[1758633785646,0.001,4201.1,4201.0,21.54418562]
[1758633787118,0.001,4201.1,4201.0,16.88038562]
[1758633787325,0.001,4201.1,4201.0,21.31628562]
[1758633787523,0.001,4201.1,4201.0,21.54418562]
[1758633790246,0.0002,4201.1,4201.0,21.54418562]
[1758633800550,9.53042591,4201.8,4201.7,2.37998905]
[1758633800752,0.3791607,4201.8,4201.7,2.37998905]
[1758633800976,0.3791607,4201.8,4201.7,2.52218894]
[1758633801477,1e-08,4201.9,4201.8,2.3799324]
[1758633801678,1e-08,4201.9,4201.8,2.8091324]
[1758633802078,1e-08,4201.9,4201.8,2.3799324]
[1758633803256,1e-08,4201.9,4201.8,16.8799324]
[1758633813529,0.13379729,4201.9,4201.8,16.8799324]
[1758633815212,0.13299729,4201.9,4201.8,16.8799324]
[1758633816909,0.37839729,4201.9,4201.8,16.8799324]
[1758633817227,0.84849729,4201.9,4201.8,16.8799324]
[1758633817782,1.0715747,4201.9,4201.8,16.8799324]
[1758633817986,2.13197476,4201.9,4201.8,16.8799324]
[1758633818181,1.0715747,4201.9,4201.8,16.8799324]
[1758633819128,0.3560747,4201.9,4201.8,16.8799324]
[1758633819502,0.13299729,4201.9,4201.8,16.8799324]
[1758633820086,0.84849729,4201.9,4201.8,16.8799324]
[1758633820634,0.37839729,4201.9,4201.8,16.8799324]
[1758633822042,0.13299729,4201.9,4201.8,20.8549324]
[1758633822633,0.13299729,4201.9,4201.8,21.3256324]
[1758633824331,0.13299729,4201.9,4201.8,20.8549324]
[1758633825948,0.001,4202.0,4201.9,2.37987577]
[1758633826249,0.001,4202.1,4202.0,2.37981913]
[1758633827248,0.13490093,4202.1,4202.0,2.37981913]
[1758633827458,1.95233262,4202.3,4202.2,2.37970586]
[1758633827755,0.001,4202.4,4202.3,2.37964923]
[1758633827921,0.001,4202.4,4202.3,3.07684923]
[1758633828121,0.001,4202.4,4202.3,3.19524923]
[1758633828322,0.001,4202.4,4202.3,17.69524923]
[1758633830828,0.001,4202.4,4202.3,17.46874923]
[1758633831030,0.001,4202.4,4202.3,16.99804923]
[1758633831230,0.6985,4202.4,4202.3,20.97304923]
[1758633832145,0.6985,4202.4,4202.3,16.99804923]
[1758633832335,0.6985,4202.4,4202.3,20.97304923]
[1758633832851,0.2409,4202.4,4202.3,16.99804923]
[1758633833028,0.6985,4202.4,4202.3,20.97304923]
[1758633836483,0.2409,4202.4,4202.3,20.97304923]
[1758633839471,0.37465686,4202.4,4202.3,20.97304923]
[1758633840172,0.37385686,4202.4,4202.3,20.97304923]
[1758633841983,0.37385686,4202.4,4202.3,16.99804923]
[1758633842188,2.3025668,4202.4,4202.3,2.49804923]
[1758633842485,2.54043883,4202.4,4202.3,2.37964923]
[1758633843845,2.54043883,4202.4,4202.3,16.87964923]
[1758633844791,2.52550365,4202.4,4202.3,16.87964923]
[1758633845088,1.05439371,4202.4,4202.3,16.87964923]
[1758633846254,1.06933499,4202.4,4202.3,16.87964923]
[1758633848657,1.06933499,4202.4,4202.3,2.37964923]
[1758633848858,1.06933499,4202.4,4202.1,2.37976249]
[1758633849059,9.53042591,4202.2,4202.1,2.37976249]
[1758633849282,10.58461962,4202.2,4202.1,16.87976249]
[1758633849597,9.88711962,4202.2,4202.1,16.87976249]
[1758633850458,0.35669371,4202.2,4202.1,20.85376249]
[1758633850658,0.13376296,4202.2,4202.1,21.55096249]
[1758633852297,0.0002,4202.4,4202.3,2.37964923]
[1758633852500,0.0002,4202.4,4202.3,6.35364923]
[1758633852903,0.0002,4202.4,4202.3,7.05214923]
[1758633853385,0.0002,4202.4,4202.3,21.55214923]
[1758633858771,0.0002,4202.4,4202.3,21.31134923]
[1758633860364,0.0002,4202.4,4202.3,20.85364923]
[1758633860599,0.2387,4202.4,4202.3,20.85364923]
[1758633860809,0.0002,4202.4,4202.3,20.85364923]
[1758633862303,0.6938,4202.4,4202.3,16.87964923]
[1758633862622,4.8904936,4202.4,4202.3,16.87964923]
[1758633862769,6.52279559,4202.4,4202.3,16.87964923]
[1758633863173,4.8904936,4202.4,4202.3,16.87964923]
[1758633864202,5.0241208,4202.4,4202.3,16.87964923]
[1758633865103,5.0233208,4202.4,4202.3,16.87964923]
[1758633865818,5.0243208,4202.4,4202.3,16.87964923]
[1758633867518,5.0243208,4202.4,4202.3,14.5]
[1758633867703,3.0,4202.3,4202.2,2.3797008]
[1758633867871,3.37126208,4202.3,4202.2,2.3797008]
[1758633868071,4.06486208,4202.3,4202.2,2.3797008]
[1758633868687,4.06482751,4202.3,4202.2,16.8797008]
[1758633868892,4.06482751,4202.3,4202.2,14.5]
[1758633869206,6.20906136,4202.3,4202.2,16.87970586]
[1758633869387,6.19410022,4202.3,4202.2,16.87970586]
[1758633870713,6.56715568,4202.3,4202.2,16.87970586]
[1758633872411,6.56715568,4202.3,4202.2,2.37970586]
[1758633872916,6.56715568,4202.3,4202.2,16.87970586]
[1758633873094,6.56715568,4202.3,4202.2,14.5]
[1758633873418,6.56715568,4202.3,4202.2,16.87970586]
[1758633874020,6.56715568,4202.3,4202.1,0.004]
[1758633874338,6.56715568,4202.3,4201.3,0.004]
[1758633874339,3.0,4201.7,4201.3,0.004]
[1758633874520,11.54972632,4201.4,4201.3,2.38421564]
[1758633874694,15.87999269,4201.4,4201.3,2.38421564]
[1758633874899,16.57359269,4201.4,4201.3,2.38421564]
[1758633875128,18.43685196,4201.4,4201.3,2.38421564]
[1758633876710,17.98175196,4201.4,4201.3,2.38421564]
[1758633877536,17.98138061,4201.4,4201.3,2.38421564]
[1758633878230,17.98138025,4201.4,4201.3,2.38421564]
[1758633878536,17.98138025,4201.4,4201.3,16.88421564]
[1758633878732,11.78722098,4201.4,4201.3,16.88421564]
[1758633879031,15.76122098,4201.4,4201.3,16.88421564]
[1758633879228,15.53895352,4201.4,4201.3,16.88421564]
[1758633879430,15.77745352,4201.4,4201.3,16.88421564]
[1758633880336,16.23255352,4201.4,4201.3,16.88421564]
[1758633880538,15.77745352,4201.4,4201.3,16.88421564]
[1758633881346,15.77745352,4201.4,4201.3,2.38421564]
[1758633881637,21.40034096,4201.4,4201.3,0.004]
[1758633881837,21.40034096,4201.4,4201.3,16.88421564]
[1758633883141,21.78445002,4201.4,4201.3,16.88421564]
[1758633884225,21.78445002,4201.4,4201.3,0.004]
[1758633885451,21.78445002,4201.4,4201.3,2.38421564]
[1758633885828,21.78400387,4201.4,4201.3,2.38421564]
[1758633886416,21.41087181,4201.4,4201.3,2.38421564]
[1758633888854,21.41087181,4201.4,4201.3,0.004]
[1758633890265,21.41007181,4201.4,4201.3,0.004]
[1758633890963,21.78322929,4201.4,4201.3,0.004]
[1758633892456,21.34182929,4201.4,4201.3,0.004]
[1758633892769,21.33843394,4201.4,4201.3,0.004]
[1758633892960,21.77983394,4201.4,4201.3,0.004]
[1758633896557,21.40667646,4201.4,4201.3,0.004]
[1758633897474,20.96527646,4201.4,4201.3,0.004]
[1758633899669,21.33842639,4201.4,4201.3,0.004]
[1758633899876,21.77982639,4201.4,4201.3,0.004]
[1758633900438,5.56972307,4201.4,4201.3,2.38421564]
[1758633900640,4.32957779,4201.4,4201.3,17.57371564]
[1758633900844,7.32957779,4201.4,4201.3,17.57371564]
[1758633903743,7.33009686,4201.4,4201.3,3.07371564]
[1758633903940,0.35609686,4201.4,4201.3,3.07371564]
[1758633904145,4.33009686,4201.4,4201.3,3.19211564]
[1758633904417,4.33009686,4201.4,4201.3,17.69211564]
[1758633904971,15.7729925,4201.4,4201.3,17.00261564]
[1758633905267,19.3059245,4201.4,4201.3,16.88421564]
[1758633905466,18.7729925,4201.4,4201.3,17.57371564]
[1758633906003,14.7989925,4201.4,4201.3,17.34601564]
[1758633906203,18.7729925,4201.4,4201.3,17.34601564]
[1758633907875,18.7729925,4201.4,4201.3,16.88421564]
[1758633908102,18.77309822,4201.4,4201.3,16.88421564]
[1758633908804,18.77309822,4201.4,4201.3,2.38421564]
[1758633909104,18.55006176,4201.4,4201.3,2.38421564]
[1758633909294,18.77310965,4201.4,4201.3,16.88421564]
[1758633910803,20.49549697,4201.4,4201.3,14.504]
[1758633911170,20.49549697,4201.4,4201.0,0.004]
[1758633911171,3.0,4201.3,4201.0,0.004]
[1758633911372,17.49549697,4201.4,4201.0,0.004]
[1758633911373,3.0,4201.1,4201.0,0.004]
[1758633911572,4.33080633,4201.1,4201.0,2.38438562]
[1758633911893,4.57930633,4201.1,4201.0,2.38438562]
[1758633912093,10.00333154,4201.1,4201.0,2.38438562]
[1758633912298,5.78083154,4201.1,4201.0,2.38438562]
[1758633912609,9.76297184,4201.1,4201.0,2.38438562]
[1758633913023,3.72997184,4201.1,4201.0,3.05668562]
[1758633913192,7.70397184,4201.1,4201.0,3.05668562]
[1758633913918,3.72997184,4201.1,4201.0,2.38438562]
[1758633914121,0.72997184,4201.1,4201.0,3.05668562]
[1758633914416,0.13375844,4201.1,4201.0,3.19888947]
[1758633914620,0.13375844,4201.1,4201.0,7.14908562]
[1758633915080,0.13295844,4201.1,4201.0,21.64908562]
[1758633916611,1e-08,4201.1,4201.0,21.64908562]
[1758633918613,3.974,4201.4,4201.3,2.38021564]
[1758633918813,0.001,4201.7,4201.6,2.38004569]
[1758633919120,0.001,4201.7,4201.6,2.52224614]
[1758633919320,0.001,4201.7,4201.6,3.17074569]
[1758633919518,0.001,4201.7,4201.6,3.29014569]
[1758633919725,0.001,4201.7,4201.6,17.79014569]
[1758633924740,0.001,4201.7,4201.6,18.58214569]
[1758633924894,0.0002,4202.6,4202.3,2.37964923]
[1758633925089,0.0002,4202.6,4202.4,2.37959261]
[1758633925290,0.0002,4202.6,4202.4,3.05189261]
[1758633926428,0.0002,4202.6,4202.4,2.37959261]
[1758633929235,0.0002,4202.6,4202.4,2.82669261]
[1758633929531,0.0002,4202.6,4202.4,2.37959261]
[1758633931194,0.2495,4202.5,4202.4,2.37959261]
[1758633931396,0.7107,4202.5,4202.4,2.37959261]
[1758633932424,10.38912466,4202.5,4202.4,2.37959261]
[1758633932606,10.37418338,4202.5,4202.4,2.37959261]
[1758633933321,11.70252172,4202.5,4202.4,2.37959261]
[1758633933523,11.70252172,4202.5,4202.3,2.37960337]
[1758633933832,14.3601419,4202.4,4202.3,2.37960337]
[1758633934008,14.34520062,4202.4,4202.3,2.37960337]
[1758633934410,14.34520062,4202.4,4202.3,16.87960337]
[1758633935542,14.71824464,4202.4,4202.3,16.87960337]
[1758633935716,14.71824464,4202.4,4202.3,16.87964923]
[1758633936258,18.24874078,4202.4,4202.3,14.5]
[1758633936469,18.09793307,4202.4,4202.0,2.37980677]
[1758633936611,9.53019129,4202.1,4202.0,2.37980677]
[1758633936926,13.63550062,4202.1,4202.0,16.87980677]
[1758633937126,19.1446103,4202.1,4202.0,16.87980677]
[1758633937326,19.36689034,4202.1,4202.0,16.87980677]
[1758633938647,19.36689034,4202.1,4202.0,14.5]
[1758633940036,19.36689034,4202.1,4202.0,16.87981913]
[1758633940349,16.85778066,4202.1,4202.0,16.87981913]
[1758633941247,0.35558937,4202.1,4202.0,17.34041913]
[1758633941550,4.10530933,4202.1,4202.0,17.57241913]
[1758633941759,4.10530933,4202.1,4202.0,16.87981913]
[1758633942432,4.32787563,4202.1,4202.0,16.87981913]
[1758633943142,4.32787563,4202.1,4202.0,2.37981913]
[1758633943358,4.32787563,4202.1,4202.0,2.84041913]
[1758633943657,4.32787563,4202.1,4202.0,17.34041913]
[1758633944355,4.32787563,4202.1,4202.0,16.87981913]
[1758633944554,4.32818259,4202.1,4202.0,16.87981913]
[1758633944725,14.08717388,4202.1,4202.0,16.87981913]
[1758633944925,14.46024064,4202.1,4202.0,16.87981913]
[1758633945254,14.23144064,4202.1,4202.0,16.87981913]
[1758633945453,14.09782435,4202.1,4202.0,16.87981913]
[1758633945623,4.70226262,4202.1,4202.0,16.87981913]
[1758633946560,4.32839586,4202.1,4202.0,16.87981913]
[1758633948558,4.32839586,4202.1,4202.0,2.37981913]
[1758633948968,0.001,4202.4,4202.0,6.35281913]
[1758633949168,0.001,4202.4,4202.3,2.37964923]
[1758633949326,0.001,4202.4,4202.3,6.37844572]
[1758633949533,0.001,4202.4,4202.3,7.04724923]
[1758633951475,0.001,4202.4,4202.3,7.16564923]
[1758633951858,0.001,4202.4,4202.3,6.47304923]
[1758633952676,0.001,4202.4,4202.3,2.49804923]
[1758633952977,0.2298,4202.4,4202.3,2.49804923]
[1758633954178,0.001,4202.4,4202.3,2.49804923]
[1758633954334,0.2298,4202.4,4202.3,2.49804923]
[1758633956060,0.6842,4202.4,4202.3,2.49804923]
[1758633956573,0.60283772,4202.4,4202.3,2.49804923]
[1758633956777,0.2298,4202.4,4202.3,2.49804923]
[1758633957362,0.6842,4202.4,4202.3,2.49804923]
[1758633957740,0.6842,4202.4,4202.3,16.99804923]
[1758633959375,0.2298,4202.4,4202.3,16.99804923]
[1758633959709,0.001,4202.4,4202.3,16.99804923]
[1758633959839,0.001,4202.4,4202.3,17.45864923]
[1758633960037,0.001,4202.4,4202.3,16.99804923]
[1758633960535,10.21439129,4202.4,4202.3,16.99804923]
[1758633960740,0.2298,4202.4,4202.3,16.99804923]
[1758633960941,0.95926621,4202.4,4202.3,16.99804923]
[1758633961754,0.73046621,4202.4,4202.3,17.45864923]
[1758633962940,0.73046621,4202.4,4202.3,16.99804923]
[1758633963339,0.50769555,4202.4,4202.3,16.99804923]
[1758633963660,4.47969555,4202.4,4202.3,16.99804923]
[1758633964037,4.47969555,4202.4,4202.3,17.45864923]
[1758633964455,4.47969555,4202.4,4202.3,17.69064923]
[1758633964898,0.50769555,4202.4,4202.3,17.69064923]
[1758633965081,0.13386239,4202.4,4202.3,17.69064923]
[1758633966255,0.001,4202.5,4202.4,2.37959261]
[1758633966481,0.001,4202.5,4202.4,6.37538853]
[1758633966789,0.001,4202.5,4202.4,7.04419261]
[1758633967194,0.001,4202.5,4202.4,21.54419261]
[1758633969898,0.001,4202.5,4202.4,21.63959596]
[1758633970364,0.001,4202.5,4202.4,22.54999596]
[1758633970565,0.001,4203.0,4202.4,22.54999596]
[1758633970895,0.001,4203.1,4202.4,22.54999596]
[1758633970896,0.001,4203.1,4203.0,2.37925291]
[1758633971199,0.001,4203.1,4203.0,20.97165291]
[1758633971574,0.001,4203.1,4203.0,21.74774283]
[1758633977815,0.001,4203.1,4203.0,21.06704283]
[1758633981604,0.244,4203.1,4203.0,21.06404283]
[1758633981935,0.001,4203.1,4203.0,21.06404283]
[1758633982439,0.001,4203.1,4203.0,17.09304283]
[1758633982617,0.6986,4203.1,4203.0,16.99765291]
[1758633982809,0.83207519,4203.1,4203.0,16.99765291]
[1758633985639,0.13447519,4203.1,4203.0,16.99765291]
[1758633985939,0.37747519,4203.1,4203.0,16.99765291]
[1758633986441,0.83207519,4203.1,4203.0,16.99765291]
[1758633987447,0.13447519,4203.1,4203.0,16.99765291]
[1758633987802,0.83207519,4203.1,4203.0,16.99765291]
[1758633989945,0.83127519,4203.1,4203.0,16.99765291]
[1758633990143,0.83127519,4203.1,4203.0,2.49765291]
[1758633990444,0.83127519,4203.1,4203.0,2.37925291]
[1758633990648,1.4373783,4203.1,4203.0,2.37925291]
[1758633991344,1.4373783,4203.1,4202.9,2.37930089]
[1758633991508,0.13347519,4203.0,4202.9,2.37930089]
[1758633991708,1.0538035,4203.0,4202.9,16.87930952]
[1758633991909,8.0248035,4203.0,4202.9,14.5]
[1758633992131,10.32039966,4203.0,4202.9,14.5]
[1758633994514,10.32039966,4203.0,4202.9,16.87930952]
[1758633994714,9.62379966,4203.0,4202.9,16.87930952]
[1758633994914,9.86679966,4203.0,4202.9,16.87930952]
[1758633995424,9.86679966,4203.0,4202.9,14.5]
[1758633995634,9.86679966,4203.0,4202.9,16.87930952]
[1758633996823,9.86679966,4203.0,4202.9,14.5]
[1758633997023,10.32139966,4203.0,4202.9,14.5]
[1758633999359,6.34939966,4203.0,4202.9,14.5]
[1758633999568,10.32139966,4203.0,4202.9,14.5]
[1758634000957,10.69440533,4203.0,4202.9,14.5]
[1758634001779,10.56093014,4203.0,4202.9,14.5]
[1758634002076,10.69454498,4203.0,4202.9,14.5]
[1758634002967,10.32153931,4203.0,4202.9,14.5]
[1758634003167,3.0,4202.9,4202.5,0.004]
[1758634003367,14.4271306,4202.7,4202.5,0.004]
[1758634003681,9.38634315,4202.6,4202.5,0.004]
[1758634003845,10.09844315,4202.6,4202.5,0.004]
[1758634005269,10.09844315,4202.6,4202.5,2.38353599]
[1758634005583,10.09844315,4202.6,4202.5,3.04583599]
[1758634005584,7.32834315,4202.6,4202.5,3.04583599]
[1758634006178,7.32834315,4202.6,4202.5,17.54583599]
[1758634006688,0.35634315,4202.6,4202.5,17.54583599]
[1758634006981,4.32834315,4202.6,4202.5,17.54583599]
[1758634008063,0.35634315,4202.6,4202.5,17.66423599]
[1758634008262,3.972,4202.7,4202.6,2.37947936]
[1758634008463,4.32823256,4202.7,4202.6,3.04177936]
[1758634009189,4.32823256,4202.7,4202.6,2.37947936]
[1758634010992,4.32823256,4202.7,4202.6,2.92747936]
[1758634011960,4.32830189,4202.7,4202.6,17.42747936]
[1758634013969,4.32830189,4202.7,4202.6,16.99787936]
[1758634015194,4.32750189,4202.7,4202.6,16.99787936]
[1758634016070,4.70050512,4202.7,4202.6,16.99787936]
[1758634016556,4.32750189,4202.7,4202.6,16.99787936]
[1758634018491,4.32750189,4202.7,4202.6,2.49787936]
[1758634018697,5.03960189,4202.7,4202.6,2.37947936]
[1758634019313,4.57070189,4202.7,4202.6,2.37947936]
[1758634021280,5.03979725,4202.7,4202.6,2.37947936]
[1758634022813,4.57089725,4202.7,4202.6,16.87947936]
[1758634023787,5.03979725,4202.7,4202.6,16.87947936]
[1758634023989,5.41281243,4202.7,4202.6,16.87947936]
[1758634024684,4.70071243,4202.7,4202.6,17.54177936]
[1758634025103,4.70071243,4202.7,4202.6,17.30907936]
[1758634025303,4.70071243,4202.7,4202.6,16.87947936]
[1758634025704,4.94391243,4202.7,4202.6,16.87947936]
[1758634026304,0.97191243,4202.7,4202.6,16.87947936]
[1758634026512,4.57089725,4202.7,4202.6,16.87947936]
[1758634027385,6.69772311,4202.7,4202.5,0.004]
[1758634027611,0.35569725,4202.6,4202.5,0.004]
[1758634027815,0.82459725,4202.6,4202.5,0.004]
[1758634028014,1.06779725,4202.6,4202.5,0.004]
[1758634028214,0.35569725,4202.6,4202.5,2.38353599]
[1758634028495,1.00169725,4202.6,4202.5,3.04583599]
[1758634028810,1.00169725,4202.6,4202.5,16.88353599]
[1758634029808,0.35569725,4202.6,4202.5,16.88353599]
[1758634029994,0.35569725,4202.6,4202.5,17.54583599]
[1758634030195,0.35569725,4202.6,4202.5,17.66423599]
[1758634031014,0.35569725,4202.6,4202.5,17.43153599]
[1758634031209,0.35569725,4202.6,4202.5,17.67963599]
[1758634031800,0.001,4202.7,4202.6,2.37947936]
[1758634032019,0.001,4202.7,4202.6,3.88457415]
[1758634032515,0.001,4202.7,4202.6,18.38457415]
[1758634032702,0.001,4202.7,4202.6,18.36077936]
[1758634033424,1e-08,4203.3,4203.2,2.3791397]
[1758634033597,1e-08,4203.3,4203.2,6.3511397]
[1758634033809,1e-08,4203.3,4203.2,7.0097397]
[1758634034000,1e-08,4203.3,4203.2,21.5097397]
[1758634034890,1e-08,4203.3,4203.2,22.3017397]
[1758634038303,11.4271306,4205.6,4203.3,0.792]
[1758634038528,0.2399,4205.3,4204.7,2.37829096]
[1758634038735,0.0192,4205.9,4204.8,2.40201673]
[1758634038736,0.22225562,4205.2,4204.8,2.40201673]
[1758634038890,0.46211926,4205.8,4204.8,16.90201673]
[1758634039097,1e-08,4204.9,4204.8,22.29983439]
[1758634039915,0.01840001,4205.9,4205.8,2.37766893]
[1758634042699,0.01840001,4205.9,4205.8,3.06004561]
[1758634043539,0.01840001,4205.9,4205.8,3.17844561]
[1758634043743,0.01840001,4205.9,4205.8,2.92386893]
[1758634044238,0.01840001,4205.9,4205.8,17.44764561]
[1758634044428,0.01840001,4205.9,4205.8,17.42386893]
[1758634045033,0.01840001,4205.9,4205.8,16.99606893]
[1758634046445,0.01840001,4205.9,4205.8,17.65466893]
[1758634046915,4.3200935,4206.9,4205.8,16.069]
[1758634047120,4.3200935,4206.9,4206.1,2.37749934]
[1758634047327,7.3200935,4206.9,4206.8,0.1184]
[1758634047539,7.3200935,4206.9,4206.8,2.49550373]
[1758634047852,0.3500935,4206.9,4206.8,2.49550373]
[1758634048027,0.3500935,4206.9,4206.8,16.99550373]
[1758634050116,0.5899935,4206.9,4206.8,16.99550373]
[1758634050316,1.0644935,4206.9,4206.8,16.99550373]
[1758634050555,1.0644935,4206.9,4206.8,14.5]
[1758634050878,1.43714445,4206.9,4206.8,16.87710373]
[1758634051066,1.43714445,4206.9,4206.8,14.5]
[1758634051220,4.43714445,4206.9,4206.8,14.5]
[1758634051641,4.55554445,4206.9,4206.8,14.5]
[1758634052942,8.52654445,4206.9,4206.8,14.5]
[1758634054552,8.52654445,4206.9,4206.8,16.87710373]
[1758634054792,8.52654445,4206.9,4206.8,14.5]
[1758634055372,8.65888045,4206.9,4206.8,14.5]
[1758634056387,8.87951339,4206.9,4206.8,14.5]
[1758634056685,8.50686244,4206.9,4206.8,14.5]
[1758634057156,10.30861742,4206.9,4206.0,2.37753702]
[1758634057491,0.1184,4206.2,4206.0,2.37755207]
[1758634057653,3.97,4206.1,4206.0,2.37755207]
[1758634058256,3.97,4206.1,4206.0,16.87755207]
[1758634059396,6.972,4206.3,4206.2,2.37744282]
[1758634059596,16.8365311,4206.3,4206.2,2.37744282]
[1758634059796,17.0764311,4206.3,4206.2,2.37744282]
[1758634060370,16.8355311,4206.3,4206.2,2.37744282]
[1758634060996,17.0754311,4206.3,4206.2,2.37744282]
[1758634063666,16.8355311,4206.3,4206.2,2.37744282]
[1758634064486,16.8355311,4206.3,4206.0,16.87751503]
[1758634064487,17.5156311,4206.3,4206.0,14.5]
[1758634064687,0.59294374,4206.2,4206.1,2.37749934]
[1758634064864,0.59214374,4206.2,4206.1,2.37749934]
[1758634065391,1.03314374,4206.2,4206.1,2.37749934]
[1758634065966,0.59214374,4206.2,4206.1,2.37749934]
[1758634066305,1.03314374,4206.2,4206.1,2.37749934]
[1758634067062,0.59214374,4206.2,4206.0,14.5]
[1758634067273,4.34079143,4206.1,4206.0,16.87755587]
[1758634067706,4.10169143,4206.1,4206.0,16.87755587]
[1758634068801,4.34079143,4206.1,4206.0,16.87755587]
[1758634069589,4.71350358,4206.1,4206.0,16.87755587]
[1758634070200,0.50540358,4206.1,4206.0,16.87755587]
[1758634070403,0.50540358,4206.1,4206.0,3.05825587]
[1758634070604,0.13269143,4206.1,4206.0,7.02725587]
[1758634070902,1e-08,4206.1,4206.0,31.15634323]
[1758634071221,3.97,4206.8,4206.7,2.37716024]
[1758634071423,0.021,4206.9,4206.8,2.37710373]
[1758634072223,0.021,4206.9,4206.8,16.87710373]
[1758634074313,3.992,4206.9,4206.8,16.87710373]
[1758634075234,0.021,4206.9,4206.8,16.87710373]
[1758634075396,0.021,4206.9,4206.8,17.55780373]
[1758634075601,0.021,4206.9,4206.8,17.67620373]
[1758634076100,0.021,4206.9,4206.8,16.99550373]
[1758634076933,4.2144868,4206.9,4206.8,16.99550373]
[1758634077912,4.4535868,4206.9,4206.8,16.99550373]
[1758634078200,4.8945868,4206.9,4206.8,16.99550373]
[1758634078644,6.33511422,4206.9,4206.8,16.87710373]
[1758634078849,5.89411422,4206.9,4206.8,16.87710373]
[1758634079144,4.2144868,4206.9,4206.8,16.87710373]
[1758634080365,7.4535868,4206.9,4206.6,0.1184]
[1758634080520,3.1184,4206.6,4205.8,0.004]
[1758634080718,0.1184,4206.4,4205.8,0.02777668]
[1758634080936,7.1994868,4206.3,4206.2,2.49584282]
[1758634081155,7.4385868,4206.3,4206.2,2.49584282]
[1758634081356,3.2224868,4206.3,4206.2,2.37744282]
[1758634081519,4.2004868,4206.3,4206.2,2.93284282]
[1758634081723,4.2004868,4206.3,4206.2,16.99584282]
[1758634082160,4.4395868,4206.3,4206.2,16.99584282]
[1758634082663,4.57309685,4206.3,4206.2,16.99584282]
[1758634083026,4.33399685,4206.3,4206.2,16.99584282]
[1758634083358,4.57309685,4206.3,4206.2,16.99584282]
[1758634083565,4.33399685,4206.3,4206.2,16.99584282]
[1758634083862,14.08378421,4206.3,4206.2,16.87744282]
[1758634085268,19.18296263,4206.3,4206.2,14.5]
[1758634085449,3.0,4206.2,4205.8,0.004]
[1758634085653,4.33499685,4206.1,4205.9,2.37761203]
[1758634085854,0.3560527,4206.0,4205.9,2.37761203]
[1758634086054,1.0361527,4206.0,4205.9,2.37761203]
[1758634086376,1.0361527,4206.0,4205.9,16.87761203]
[1758634086867,10.54684006,4206.0,4205.9,16.87761203]
[1758634087158,10.10584006,4206.0,4205.9,16.87761203]
[1758634088060,9.86674006,4206.0,4205.9,16.87761203]
[1758634088664,10.10584006,4206.0,4205.9,16.87761203]
[1758634089565,10.10584006,4206.0,4205.9,2.37761203]
[1758634089760,10.10504006,4206.0,4205.9,2.37761203]
[1758634089971,10.10504006,4206.0,4205.9,16.87761203]
[1758634090868,10.54604006,4206.0,4205.9,14.5]
[1758634091229,24.53527229,4206.0,4205.8,0.004]
[1758634091530,7.54391976,4205.9,4205.8,0.004]
[1758634092165,7.78601976,4205.9,4205.8,0.004]
[1758634094860,8.15877808,4205.9,4205.8,0.004]
[1758634095088,10.08311519,4205.9,4205.8,0.004]
[1758634095458,9.41161519,4205.9,4205.8,2.38166893]
[1758634095790,7.48727808,4205.9,4205.8,0.004]
[1758634096015,7.72457808,4205.9,4205.8,0.004]
[1758634096296,7.72457808,4205.9,4205.8,2.38166893]
[1758634096586,3.50627808,4205.9,4205.8,3.09186893]
[1758634096790,7.48727808,4205.9,4205.8,3.09186893]
[1758634096986,7.11451976,4205.9,4205.8,2.85516893]
[1758634097390,0.13351976,4205.9,4205.8,2.38166893]
[1758634097557,4.11451976,4205.9,4205.8,2.85516893]
[1758634097764,7.11451976,4205.9,4205.8,2.85516893]
[1758634098977,7.11451976,4205.9,4205.8,2.38166893]
[1758634099872,7.11451976,4205.9,4205.8,16.88166893]
[1758634101900,7.33664212,4205.9,4205.8,16.88166893]
[1758634103417,7.33641113,4205.9,4205.8,16.88166893]